Cogmind - Beta 13 X2 @@@ ROGUE MODE // 2024.01.06 @ 01:00:11 Player: Minty Result: Destroyed by G-67 Veteran with Field Laser Performance ------------- Evolutions (7) 3500 Regions Visited (23) 4600 Robots Destroyed (79) 395 Value Destroyed (4707) 4707 Prototype IDs (36) 720 Alien Tech Used (3) 600 Bonus (3465) 3465 TOTAL SCORE: 17987 Bonus ------- High Alert Combat Kills 462 Follower Combat Kills 884 Entered Garrisons 600 Used RIF Installer 1500 Met Zhirov 300 Friendly Fire -281 Cogmind --------- Core Integrity 0/1300 Matter 45/300 Energy 98/100 System Corruption 19% Temperature Cool (21) Movement Core (50) Location -3/Testing Parts ------- > --- POWER (2) -------- (None) > --- PROPULSION (5) --- (None) > --- UTILITY (11) ----- (None) > --- WEAPON (4) ------- (None) > --- INVENTORY (5) ---- Micro Antimatter Reactor Improved Sensor Array Tactical Quantum Warhead Improved Remote Datajack Peak State ------------ > --- POWER ------------ Light Antimatter Reactor > --- PROPULSION ------- Combat Gravmag System Combat Gravmag System Cooled Antigrav System Field Propulsion Array > --- UTILITY ---------- Improved Sensor Array Improved Signal Interpreter 0b10 Decoder Chip [Skirmisher] Experimental Phase Shifter Improved Propulsion Shielding Advanced System Shield Relay Coupler [NC] Relay Coupler [Duelist] > --- WEAPON ----------- Advanced KE Penetrator Hypervelocity Railgun Ionic Axe > --- INVENTORY -------- Improved Sensor Array Core Expander Tactical Quantum Warhead Improved Remote Datajack Dirty Bomb Trap [Rating: 102] Favorites ----------- Power Micro Nuclear Core Engine Light Ion Engine Power Core Micro Nuclear Core Reactor Light Antimatter Reactor Propulsion Improved VTOL Module Leg Aluminum Leg Wheel Compact Wheel Hover Unit Combat Gravmag System Flight Unit Improved VTOL Module Utility Hacking Suite Device Advanced Sensor Array Storage Small Storage Unit Processor Improved Signal Interpreter Hackware Hacking Suite Protection Experimental Core Shielding Weapon Gauss Rifle Energy Gun Heavy Laser Energy Cannon HERF Cannon Ballistic Gun Gauss Rifle Launcher Mini Grenade Launcher Special Weapon Remote Datajack Impact Weapon Makeshift Hammer Slashing Weapon Mining Claw Special Melee Weapon Improved Datajack Build | -11 -10 -9 -9 -8 -8 -8 -7 -7 -6 -6 -6 -5 -5 -5 -5 -5 -4 -4 -4 -4 -3 -3 -3 ------- Run | Yrd Mat Mat Min Mat Gar Mat Fac Gar Fac Low Low Fac Gar Fac Upp Upp Fac Upp Upp Zhi Pro Res Tes Slots Evolved 14 | . . 2 . 2 . . 2 . 2 . . 2 . . . . 2 . . . . 2 . Power 1 | . . . . . . . . . . . . . . . . . . . . . . 1 . Propulsion 3 | . . . . 1 . . 1 . . . . . . . . . 1 . . . . . . Utility 9 | . . 2 . 1 . . 1 . 2 . . 1 . . . . 1 . . . . 1 . Weapon 1 | . . . . . . . . . . . . 1 . . . . . . . . . . . Parts Attached 203 | . 3 14 10 5 33 5 9 8 18 7 1 2 15 4 3 1 . 10 2 7 11 11 24 Power 15 | . . . 2 . 5 . 1 1 2 . . . . . . . . . . 1 1 1 1 Engine 5 | . . . 2 . 2 . 1 . . . . . . . . . . . . . . . . Core 6 | . . . . . 3 . . 1 2 . . . . . . . . . . . . . . Reactor 4 | . . . . . . . . . . . . . . . . . . . . 1 1 1 1 Propulsion 35 | . . 4 1 2 7 2 1 . 4 1 . . 3 . . . . . . 3 1 3 3 Treads . | . . . . . . . . . . . . . . . . . . . . . . . . Leg 7 | . . . . 2 2 . . . . . . . . . . . . . . 3 . . . Wheel 1 | . . . 1 . . . . . . . . . . . . . . . . . . . . Hover 9 | . . 3 . . 1 . . . . . . . . . . . . . . . . 2 3 Flight 18 | . . 1 . . 4 2 1 . 4 1 . . 3 . . . . . . . 1 1 . Utility 61 | . 1 2 2 3 6 2 2 5 5 4 1 1 6 3 2 . . 4 . 3 1 5 3 Device 17 | . . 1 . 1 1 . . . . 1 1 1 . 1 2 . . 2 . 1 . 3 2 Storage 1 | . . . . . . . . . . . . . . . . . . . . 1 . . . Processor 9 | . 1 1 1 . 1 . . . 3 . . . 1 . . . . 1 . . . . . Hackware 24 | . . . . 1 3 2 1 5 2 1 . . 5 2 . . . . . . 1 1 . Protection 10 | . . . 1 1 1 . 1 . . 2 . . . . . . . 1 . 1 . 1 1 Artifact . | . . . . . . . . . . . . . . . . . . . . . . . . Weapon 92 | . 2 8 5 . 15 1 5 2 7 2 . 1 6 1 1 1 . 6 2 . 8 2 17 Energy Gun 20 | . 2 5 . . . . 3 . 4 1 . 1 . . 1 . . 1 1 . . . 1 Energy Cannon 1 | . . . . . . . . . . . . . . . . . . 1 . . . . . Ballistic Gun 23 | . . 2 3 . 4 . 1 . 1 1 . . 4 . . 1 . 2 . . . . 4 Ballistic Cannon . | . . . . . . . . . . . . . . . . . . . . . . . . Launcher 14 | . . 1 1 . 5 . 1 1 . . . . . . . . . . . . . . 5 Special Weapon 11 | . . . . . . . . . 2 . . . 2 1 . . . 1 . . 1 1 3 Impact Weapon 5 | . . . . . . . . . . . . . . . . . . 1 . . 3 1 . Slashing Weapon 11 | . . . 1 . 6 . . . . . . . . . . . . . . . . . 4 Piercing Weapon . | . . . . . . . . . . . . . . . . . . . . . . . . Special Melee Weapon 7 | . . . . . . 1 . 1 . . . . . . . . . . 1 . 4 . . Unidentified Prototypes 17 | . . . . . . 1 2 . . . . . . . . . . . . 4 1 1 8 Corrupted Parts 1 | . . . . . . . . 1 . . . . . . . . . . . . . . . System Corruption 10 | . . . . . . . . 10 . . . . . . . . . . . . . . . Parts Lost 72 | . . 10 1 . 12 1 . 3 6 . . . 5 . . . . 4 2 . 6 2 20 Power 9 | . . 1 . . 3 . . 1 2 . . . . . . . . . 1 . . . 1 Propulsion 23 | . . 3 . . 5 . . 2 1 . . . 2 . . . . 1 1 . 3 . 5 Utility 24 | . . 2 1 . 1 1 . . 1 . . . 2 . . . . 2 . . 3 2 9 Weapon 16 | . . 4 . . 3 . . . 2 . . . 1 . . . . 1 . . . . 5 Highest Loss Streak 13 | . . 5 1 . 8 1 . 2 3 . . . 3 . . . . 4 2 . 2 2 13 To Critical Strikes 2 | . . . . . . . . . . . . . . . . . . . . . . . 2 Average Slot Usage (%) 73 | . 90 68 45 88 89 86 76 92 91 98 93 88 93 96 94 88 74 61 64 52 43 37 46 Engine 2 | . 14 3 5 9 5 . 2 2 . . . . . . . . . . . . . . . Core 2 | . . . . . 1 9 4 3 4 6 6 5 5 5 5 5 5 5 4 . . . . Leg 2 | . 28 . . 8 8 . . . . . . . . . . . . . . 2 . . . Hover 2 | . . 4 . . 5 . . . . . . . . . . . . . . . . 4 11 Flight 12 | . . 4 . . 8 18 30 25 25 26 26 23 22 23 23 23 21 15 13 10 5 2 1 Device 5 | . . 3 . 8 10 . . . . 5 6 11 8 5 6 11 6 10 13 10 6 2 3 Storage 1 | . 14 9 . . . . . . . . . . . . . . . . . . . . . Processor 11 | . 4 22 22 24 18 14 7 7 13 14 13 11 11 6 5 5 5 8 10 10 10 9 7 Hackware 16 | . . . . 9 14 27 15 37 34 29 20 17 24 36 35 29 26 11 10 10 11 9 7 Protection 1 | . . . 1 3 . . . . . 1 6 . . . . . . 2 3 . 5 4 2 Energy Gun 3 | . 19 12 . . . . 5 7 4 6 6 11 6 . . 5 5 2 . . . . . Ballistic Gun 3 | . 8 5 6 . 3 . . . 2 1 6 5 6 13 10 1 5 . . . . . 4 Launcher 1 | . . . 2 9 4 9 1 . . . . . . . . . . . . . . . . Special Weapon 1 | . . . . . . . . . 2 4 . . 2 2 5 3 . . . . . . . Slashing Weapon 1 | . . . 3 9 7 2 . . . . . . . . . . . . . . . . 2 Special Melee Weapon 1 | . . . . . . 6 7 6 2 . . . . . . . . . 1 5 3 . . Naked Turns 28 | . . . . . . . . . . . . . . . . . . . . . . . 28 Heaviest Build 38 | 12 13 14 18 19 23 8 14 14 15 23 23 21 21 20 18 19 19 19 15 24 6 15 38 Greatest Support 90 | 20 20 20 16 20 20 14 18 18 22 23 23 23 23 19 19 19 19 19 15 90 9 15 52 Greatest Overweight (x) 4 | . . 4 3 . 3 . . . . . . . 1 1 . . . . . 2 1 1 4 Average Overweight (x) . | . . . . . . . . . . . . . . . . . . . . . . . . Largest Inventory Capacity 8 | . 8 8 5 5 5 5 5 5 5 5 5 5 5 5 5 5 5 5 5 5 5 5 5 Average Capacity 5 | . 8 7 5 5 5 5 5 5 5 5 5 5 5 5 5 5 5 5 5 5 5 5 5 Most Carried 7 | . 7 5 5 4 5 5 5 3 5 5 5 4 5 4 5 3 4 5 5 5 5 5 5 Average Carried 4 | . 4 4 4 4 4 4 3 1 4 4 5 4 4 2 2 3 3 4 4 5 4 4 3 Final Capacity 8 | 8 8 5 5 5 5 5 5 5 5 5 5 5 5 5 5 5 5 5 5 5 5 5 5 Final Carried 6 | 6 5 5 4 4 5 4 3 3 5 5 5 4 4 2 3 3 4 5 5 5 5 5 4 Class Distribution -------------------- 24% | Mutant 23% | Bothacker-Sprinter 18% | Scavenger-Mutant 12% | Sprinter 6% | Derelict-Sprinter 5% | Bothacker-Scout 4% | Skirmisher Dominant Class ---------------- Mutant | -10/Materials Mutant | -9/Materials Mutant | -9/Mines Mutant | -8/Materials Scavenger-Mutant | -8/Garrison Scavenger-Mutant | -8/Materials Sprinter | -7/Factory Bothacker-Sprinter | -7/Garrison Bothacker-Sprinter | -6/Factory Bothacker-Sprinter | -6/Lower Caves Bothacker-Sprinter | -6/Lower Caves Bothacker-Sprinter | -5/Factory Bothacker-Sprinter | -5/Garrison Bothacker-Sprinter | -5/Factory Bothacker-Sprinter | -5/Upper Caves Bothacker-Scout | -5/Upper Caves Bothacker-Sprinter | -4/Factory Sprinter | -4/Upper Caves Derelict-Sprinter | -4/Upper Caves Sprinter | -4/Zhirov Sprinter | -3/Proximity Caves Mutant | -3/Research Skirmisher | -3/Testing Resources | -11 -10 -9 -9 -8 -8 -8 -7 -7 -6 -6 -6 -5 -5 -5 -5 -5 -4 -4 -4 -4 -3 -3 -3 ----------- Run | Yrd Mat Mat Min Mat Gar Mat Fac Gar Fac Low Low Fac Gar Fac Upp Upp Fac Upp Upp Zhi Pro Res Tes Matter Collected 3474 | 200 37 102 230 66 629 70 . 205 178 179 13 . 367 . 136 136 . 125 10 . 156 65 570 Remotely . | . . . . . . . . . . . . . . . . . . . . . . . . Salvage Created 3649 | . 74 395 71 80 748 109 . 241 178 65 . . 278 . 108 184 . . . . 207 56 855 Parts 160 | . 5 27 1 4 28 4 . 13 8 5 . . 13 . 2 8 . . . . 5 . 37 Haulers Intercepted 2 | . . . . . . 1 . . . . . . . . . . . . . . . . 1 Recyclers Shooed 1 | . . . . . . . . . . . . . . . . . . . . . . . 1 Parts Field Recycled . | . . . . . . . . . . . . . . . . . . . . . . . . Retrieved Matter . | . . . . . . . . . . . . . . . . . . . . . . . . Parts Self-Destructed 22 | . . . . . . . . . . 1 . . . . 7 6 . 4 1 . 3 . . Prevented 5 | . . . . . . . . . . 2 . . . . . 3 . . . . . . . Kills | -11 -10 -9 -9 -8 -8 -8 -7 -7 -6 -6 -6 -5 -5 -5 -5 -5 -4 -4 -4 -4 -3 -3 -3 ------- Run | Yrd Mat Mat Min Mat Gar Mat Fac Gar Fac Low Low Fac Gar Fac Upp Upp Fac Upp Upp Zhi Pro Res Tes Combat Hostiles Destroyed 79 | . 1 11 14 2 15 1 . 4 3 1 . . 7 . 2 3 . . . . 4 . 11 Melee 8 | . . . 1 . 4 . . . . . . . . . . . . . . . . . 3 Guns 30 | . 1 10 . . . . . 2 3 1 . . 7 . 2 1 . . . . . . 3 AOE 38 | . . . 13 2 11 1 . 2 . . . . . . . 1 . . . . 4 . 4 Classes Destroyed 14 | . 2 3 1 . 2 1 . 2 . . . . 1 . . . . . . . . . 2 Worker 4 | . . . . . . . . . . . . . . . . . . . . . . . 4 Builder 2 | . . 1 . . . . . . . . . . . . . . . . . . . 1 . Hauler 2 | . . . . . . 1 . . . . . . . . . . . . . . . . 1 Recycler 1 | . . . . . . . . . . . . . . . . . . . . . . . 1 Watcher 3 | . 1 . . . . 1 . . . . . . . . . . . . . . . 1 . Swarmer 9 | . . 3 . . . . . . . . . . 5 . . . . . . . 1 . . Grunt 36 | . 1 5 1 2 11 1 . 3 . . . . 1 . 2 2 . . . . 3 . 4 Duelist 1 | . . . . . 1 . . . . . . . . . . . . . . . . . . Sentry 8 | . . 3 . . 2 . . . 2 1 . . . . . . . . . . . . . Demolisher 1 | . . . . . 1 . . . . . . . . . . . . . . . . . . Specialist 1 | . . . . . . . . . . . . . 1 . . . . . . . . . . Hunter 5 | . . . . . . . . 1 . . . . . . . 1 . . . . . . 3 Programmer 6 | . . . . . . . . 1 1 . . . . . . . . . . . . . 4 Assembled 14 | . . . 14 . . . . . . . . . . . . . . . . . . . . Best Kill Streak 14 | . 2 6 14 2 8 3 . 2 1 1 . . 3 . 1 2 . . . . 3 2 13 Combat Bots Only 14 | . 1 6 14 2 8 1 . 2 1 1 . . 3 . 1 2 . . . . 3 . 8 Max Kills in Single Turn 4 | . 1 2 4 1 2 2 . 1 1 1 . . 2 . 1 1 . . . . 3 1 3 Gunslinging 1 | . . . . . . . . . . . . . 1 . . . . . . . . . . Exploded 4 | . . . 4 1 2 1 . 1 . . . . . . . 1 . . . . 3 . 1 Melee 1 | . . . 1 . 1 . . . . . . . . . . . . . . . . . 1 Uniques/NPCs Destroyed . | . . . . . . . . . . . . . . . . . . . . . . . . Combat | -11 -10 -9 -9 -8 -8 -8 -7 -7 -6 -6 -6 -5 -5 -5 -5 -5 -4 -4 -4 -4 -3 -3 -3 -------- Run | Yrd Mat Mat Min Mat Gar Mat Fac Gar Fac Low Low Fac Gar Fac Upp Upp Fac Upp Upp Zhi Pro Res Tes Hostile Shots Fired 825 | . 11 121 11 6 84 7 . 63 75 27 2 . 58 3 11 6 . 16 7 . 36 18 263 Missed 328 | . 4 29 6 4 34 2 . 26 38 18 . . 22 1 8 4 . 5 3 . 14 7 103 Damage Taken 9173 | . 86 1130 128 28 1117 120 . 532 469 70 31 . 601 37 60 40 . 225 87 . 620 251 3541 Core 2917 | . 25 330 47 28 328 69 . 266 125 . . . 85 . . . . 41 37 . 234 113 1189 Absorbed by Shields 6 | . . . . . . . . . . . . . 6 . . . . . . . . . . Redirected to Shielding 234 | . . . . . . . . . . . . . . . . . . . . . 136 57 41 Regen/Repaired (Parts) 28 | . . . . . . . . . 28 . . . . . . . . . . . . . . Core Remaining (%) 65 | 100 90 . 5 . . 22 . 62 . . 85 . . . . 91 . . . . 65 . . Volleys Fired 290 | . 10 34 10 2 30 2 4 29 29 16 . . 45 6 16 18 . 8 . . 1 2 28 Largest 3 | . 2 2 1 1 2 1 1 2 2 2 . . 3 1 2 2 . 2 . . 1 1 3 Hottest 166 | . 90 115 36 36 72 30 56 86 97 97 . . 166 5 56 93 . 93 . . 5 7 110 Shots Fired 420 | . 20 55 10 2 37 2 4 31 39 25 . . 82 6 19 19 . 15 . . 1 2 51 Gun 303 | . 20 55 1 . 12 . 3 29 32 18 . . 65 . 6 11 . 14 . . . . 37 Cannon . | . . . . . . . . . . . . . . . . . . . . . . . . Launcher 46 | . . . 9 2 25 2 1 2 . . . . . . . . . . . . . . 5 Special 71 | . . . . . . . . . 7 7 . . 17 6 13 8 . 1 . . 1 2 9 Kinetic 141 | . 9 11 1 . 12 . . . 12 9 . . 32 . 6 4 . 10 . . . . 35 Thermal 151 | . 11 44 . . . . 3 29 20 9 . . 33 . . . . . . . . . 2 Explosive 46 | . . . 9 2 25 2 1 2 . . . . . . . . . . . . . . 5 Electromagnetic 11 | . . . . . . . . . . . . . . . . 7 . 4 . . . . . Robot Hit Streak 14 | . 6 7 5 7 12 1 4 7 13 10 . . 14 2 5 8 . 4 . . 2 4 11 Robot Miss Streak 9 | . 9 2 2 . 1 2 . 3 2 2 . . 9 2 3 2 . 2 . . . . 5 Penetration Max 1 | . . . . . 1 . . . . . . . . . . . . . . . . . 1 Secondary Targets 5 | . . 2 . . . . . . . . . . 2 . . . . . . . . . 1 Max Gunslinging Chain 1 | . . 1 . . . . . . . . . . 1 . . . . . . . . . 1 Shots Hit Robots 375 | . 8 42 6 2 56 7 5 28 36 19 . . 50 3 12 13 . 7 2 . 27 4 48 Core Hits 198 | . 6 26 26 3 44 4 . 9 7 7 . . 15 . 3 3 . . . . 9 . 36 Critical Kills 5 | . . . . . . . . . 1 . . . . . 1 . . . . . . . 3 Critical Parts Destroyed 5 | . . . . . . . . . . . . . 1 . . . . . . . 1 1 2 Critical Strikes 18 | . 1 . . . . . . 2 3 . . . 2 . 1 . . . . . 1 1 7 Burn 6 | . 1 . . . . . . 2 2 . . . 1 . . . . . . . . . . Destroy 8 | . . . . . . . . . 1 . . . 1 . 1 . . . . . . . 5 Smash 2 | . . . . . . . . . . . . . . . . . . . . . 1 1 . Sever 2 | . . . . . . . . . . . . . . . . . . . . . . . 2 Melee Attacks 162 | . . . 1 . 58 9 3 15 10 . . . . . . . . 5 3 . 30 4 24 Impact 17 | . . . . . . . . . . . . . . . . . . 5 2 . 6 4 . Slashing 83 | . . . 1 . 58 . . . . . . . . . . . . . . . . . 24 Piercing 25 | . . . . . . . . . . . . . . . . . . . 1 . 24 . . Sneak Attacks 23 | . . . . . . 1 2 8 3 . . . . . . . . . . . 5 1 3 Combat Hostiles 5 | . . . . . . . 1 . . . . . . . . . . . . . 4 . . Follow-up Attacks . | . . . . . . . . . . . . . . . . . . . . . . . . Damage Inflicted 9866 | . 92 512 1091 114 2718 182 50 381 486 293 . . 637 . 83 119 . 76 83 . 331 131 2487 Guns 2989 | . 83 511 . . 165 . 50 244 486 293 . . 637 . 83 69 . 76 . . . . 292 Cannons . | . . . . . . . . . . . . . . . . . . . . . . . . Explosions 4191 | . . . 1061 114 1441 182 . 137 . . . . . . . 50 . . . . . . 1206 Melee 2666 | . . . 30 . 1112 . . . . . . . . . . . . . 83 . 331 131 979 Ramming 20 | . 9 1 . . . . . . . . . . . . . . . . . . . . 10 Kinetic 1366 | . 34 102 . . 165 . . . 156 161 . . 330 . 83 . . 76 . . . . 259 Thermal 1604 | . 49 409 . . . . 50 244 330 132 . . 307 . . 50 . . . . . . 33 Explosive 4141 | . . . 1061 114 1441 182 . 137 . . . . . . . . . . . . . . 1206 Electromagnetic 69 | . . . . . . . . . . . . . . . . 69 . . . . . . . Impact 490 | . . . . . . . . . . . . . . . . . . . 81 . 278 131 . Slashing 2121 | . . . 30 . 1112 . . . . . . . . . . . . . . . . . 979 Piercing 55 | . . . . . . . . . . . . . . . . . . . 2 . 53 . . Highest Corruption 19 | . . . . . . . 3 13 2 2 2 . . . . . . . . . . . 19 Average Corruption 4 | . . . . . . . 3 8 1 2 2 . . . . . . . . . . . 9 Corruption Purged . | . . . . . . . . . . . . . . . . . . . . . . . . Corruption Blocked 15 | . . . . . . . . . . . . . . . . . . . . . . . 15 Effects 21 | . . . . . . . 2 8 5 1 . . . . . . . . . . . . 5 Message Errors 7 | . . . . . . . . 4 2 . . . . . . . . . . . . . 1 Matter Fused 4 | . . . . . . . . 2 1 1 . . . . . . . . . . . . . Heat Flow Errors 2 | . . . . . . . 1 . . . . . . . . . . . . . . . 1 Energy Discharges 2 | . . . . . . . . . . . . . . . . . . . . . . . 2 Data Loss (minor) 3 | . . . . . . . . 2 . . . . . . . . . . . . . . 1 Data Loss (major) 1 | . . . . . . . 1 . . . . . . . . . . . . . . . . Misfires 1 | . . . . . . . . . 1 . . . . . . . . . . . . . . Weapon Failures 1 | . . . . . . . . . 1 . . . . . . . . . . . . . . Overload Shots . | . . . . . . . . . . . . . . . . . . . . . . . . Overflow Damage 501 | . . . 59 . 65 39 . . . . . . . . . . . . 6 . 34 107 191 Projectiles . | . . . . . . . . . . . . . . . . . . . . . . . . Explosions 173 | . . . 59 . 18 39 . . . . . . . . . . . . . . . . 57 Melee 328 | . . . . . 47 . . . . . . . . . . . . . 6 . 34 107 134 Knockbacks 2 | . . . . . . . . . . . . . . . . . . . . . . 2 . Impact 2 | . . . . . . . . . . . . . . . . . . . . . . 2 . Kinetic . | . . . . . . . . . . . . . . . . . . . . . . . . Secondary . | . . . . . . . . . . . . . . . . . . . . . . . . Self-Inflicted Damage 423 | . . . 70 . 120 49 . . . . . . . . . . . . . . . . 184 Shots 11 | . . . 2 . 5 1 . . . . . . . . . . . . . . . . 3 Rammed 4 | . . 1 . . . . . . . . . . . . . . . . . . . . 3 Targets Rammed 8 | . 4 1 . . . . . . . . . . . . . . . . . . . . 3 Kicked 4 | . 4 . . . . . . . . . . . . . . . . . . . . . . Crushed . | . . . . . . . . . . . . . . . . . . . . . . . . Highest Temperature 250 | . 149 193 . 2 72 . 175 125 203 36 . . 191 . . 24 . 8 . . . . 250 Average Temperature 62 | . 61 66 . 2 43 . 73 36 86 21 . . 84 . . 10 . 7 . . . . 45 Received Heat Transfer 1634 | . 51 501 20 18 369 . . 225 96 24 . . 54 18 27 9 . 54 9 . 45 27 87 Siege Activations . | . . . . . . . . . . . . . . . . . . . . . . . . Robots Corrupted 1 | . . . . . . . . . . . . . . . . 1 . . . . . . . Combat Hostiles 1 | . . . . . . . . . . . . . . . . 1 . . . . . . . Parts Fried 9 | . . . . . . . . 1 . . . . . . . 1 . . . . . 5 2 Impact Corruptions 8 | . . . . . . . . . . . . . . . . . . . 1 . 2 5 . Robots Melted 1 | . . 1 . . . . . . . . . . . . . . . . . . . . . Combat Hostiles 1 | . . 1 . . . . . . . . . . . . . . . . . . . . . Parts Melted 7 | . . 2 . . . . . . 3 . . . 1 . . . . . . . 1 . . Heat Transferred 3606 | . 210 925 . . . . 111 666 777 259 . . 571 . . 50 . . . . . . 37 Parts Sabotaged . | . . . . . . . . . . . . . . . . . . . . . . . . Parts Stolen . | . . . . . . . . . . . . . . . . . . . . . . . . Parts Stripped . | . . . . . . . . . . . . . . . . . . . . . . . . Power Chain Reactions 1 | . . . . . . . . . . . . . . . . 1 . . . . . . . Missiles Intercepted . | . . . . . . . . . . . . . . . . . . . . . . . . Alert | -11 -10 -9 -9 -8 -8 -8 -7 -7 -6 -6 -6 -5 -5 -5 -5 -5 -4 -4 -4 -4 -3 -3 -3 ------- Run | Yrd Mat Mat Min Mat Gar Mat Fac Gar Fac Low Low Fac Gar Fac Upp Upp Fac Upp Upp Zhi Pro Res Tes Peak Influence 1005 | . 52 287 193 168 1005 634 288 644 612 . . 135 424 223 . . 156 . . . . 507 874 Initial 489 | . . 21 108 70 109 489 288 116 338 . . 135 94 196 . . 156 . . . . 450 273 Average 354 | . 24 158 132 107 518 521 188 377 439 . . 135 260 210 . . 156 . . . . 475 499 Maximum Alert Level 3 | . . 1 . . 3 2 1 2 2 . . . 2 1 . . . . . . . 2 3 Low Security (%) 30 | . 100 58 100 100 8 . 70 18 . . . 100 32 21 . . 100 . . . . . . Level 1 32 | . . 41 . . 36 . 29 30 38 . . . 57 78 . . . . . . . . 53 Level 2 26 | . . . . . 24 100 . 50 61 . . . 10 . . . . . . . . 100 16 Level 3 10 | . . . . . 31 . . . . . . . . . . . . . . . . . 29 Level 4 . | . . . . . . . . . . . . . . . . . . . . . . . . Level 5 . | . . . . . . . . . . . . . . . . . . . . . . . . High Security . | . . . . . . . . . . . . . . . . . . . . . . . . Max Security . | . . . . . . . . . . . . . . . . . . . . . . . . Squads Dispatched 14 | . . . . 1 . . 1 . 5 . . . . 1 . . . . . . . . 6 Investigation 8 | . . . . 1 . . 1 . 3 . . . . 1 . . . . . . . . 2 Extermination 1 | . . . . . . . . . . . . . . . . . . . . . . . 1 Reinforcement 5 | . . . . . . . . . 2 . . . . . . . . . . . . . 3 Assault . | . . . . . . . . . . . . . . . . . . . . . . . . Garrison . | . . . . . . . . . . . . . . . . . . . . . . . . Intercept . | . . . . . . . . . . . . . . . . . . . . . . . . Searches Triggered 1 | . . . . . . . . . 1 . . . . . . . . . . . . . . Construction Impeded 1 | . . . . . . . . . . . . . . . . . . . . . . . 1 Haulers Reinforced . | . . . . . . . . . . . . . . . . . . . . . . . . Active Scanning Responses . | . . . . . . . . . . . . . . . . . . . . . . . . Cargo Convoy Interrupts . | . . . . . . . . . . . . . . . . . . . . . . . . Stealth | -11 -10 -9 -9 -8 -8 -8 -7 -7 -6 -6 -6 -5 -5 -5 -5 -5 -4 -4 -4 -4 -3 -3 -3 --------- Run | Yrd Mat Mat Min Mat Gar Mat Fac Gar Fac Low Low Fac Gar Fac Upp Upp Fac Upp Upp Zhi Pro Res Tes Distress Signals 6 | . . . . . . 2 . . 1 . . . . . . . . . . . 1 . 2 Communications Jammed . | . . . . . . . . . . . . . . . . . . . . . . . . Distress Signals . | . . . . . . . . . . . . . . . . . . . . . . . . Times Spotted 232 | . 4 16 18 6 31 7 1 27 15 6 1 . 18 3 7 12 . 4 6 . 20 3 27 Peak Tracking Total 17 | . 3 5 17 4 9 5 1 6 6 4 1 . 5 2 4 4 . 4 10 . 5 1 9 Tactical Retreats 27 | . . 1 1 . 1 . . 5 5 2 . . 1 1 . 3 . 2 2 . 1 . 2 Traps | -11 -10 -9 -9 -8 -8 -8 -7 -7 -6 -6 -6 -5 -5 -5 -5 -5 -4 -4 -4 -4 -3 -3 -3 ------- Run | Yrd Mat Mat Min Mat Gar Mat Fac Gar Fac Low Low Fac Gar Fac Upp Upp Fac Upp Upp Zhi Pro Res Tes Traps Triggered 6 | . . . . . 2 . . . 1 . . . 2 . . . . . . . . . 1 Indirectly . | . . . . . . . . . . . . . . . . . . . . . . . . Trap Hack Attempts . | . . . . . . . . . . . . . . . . . . . . . . . . Triggered . | . . . . . . . . . . . . . . . . . . . . . . . . Disarmed . | . . . . . . . . . . . . . . . . . . . . . . . . Reprogrammed . | . . . . . . . . . . . . . . . . . . . . . . . . Reused 3 | . . . . . . . . 2 . . . . . . . . . . . . . . 1 Traps Extracted . | . . . . . . . . . . . . . . . . . . . . . . . . Installed 3 | . . . . . . . . 2 . . . . . . . . . . . . . . 1 Triggered 4 | . . . . . . . . 2 . . . . . . . . . . . . 1 . 1 Most Traps Carried 2 | . . . . . 2 2 2 2 . . . . . . . . . . . . 1 1 1 Machines | -11 -10 -9 -9 -8 -8 -8 -7 -7 -6 -6 -6 -5 -5 -5 -5 -5 -4 -4 -4 -4 -3 -3 -3 ---------- Run | Yrd Mat Mat Min Mat Gar Mat Fac Gar Fac Low Low Fac Gar Fac Upp Upp Fac Upp Upp Zhi Pro Res Tes Machines Disabled 19 | . . . . . 8 2 . 2 . . . . 1 . . . . . . . . . 6 Max in Single Turn 3 | . . . . . 1 . . 1 . . . . 1 . . . . . . . . . 3 Garrison Access 1 | . . . . . . 1 . . . . . . . . . . . . . . . . . Garrison Relay 6 | . . . . . 3 . . 2 . . . . 1 . . . . . . . . . . Machines Repaired . | . . . . . . . . . . . . . . . . . . . . . . . . Machines Dismantled . | . . . . . . . . . . . . . . . . . . . . . . . . Machines Sabotaged . | . . . . . . . . . . . . . . . . . . . . . . . . Overloaded Fab Kills . | . . . . . . . . . . . . . . . . . . . . . . . . Hacking | -11 -10 -9 -9 -8 -8 -8 -7 -7 -6 -6 -6 -5 -5 -5 -5 -5 -4 -4 -4 -4 -3 -3 -3 --------- Run | Yrd Mat Mat Min Mat Gar Mat Fac Gar Fac Low Low Fac Gar Fac Upp Upp Fac Upp Upp Zhi Pro Res Tes Machines Accessed 38 | . 2 2 . 2 3 1 3 1 8 . . 1 . 2 . 1 . 3 . 5 . 1 3 Terminals 18 | . 1 1 . 1 3 . 2 1 4 . . . . 2 . . . 1 . . . . 2 Fabricators . | . . . . . . . . . . . . . . . . . . . . . . . . Repair Stations 2 | . . . . . . . . . 2 . . . . . . . . . . . . . . Recycling Units 3 | . 1 . . . . . . . 1 . . . . . . . . . . . . 1 . Scanalyzers 1 | . . 1 . . . . . . . . . . . . . . . . . . . . . Garrison Access 6 | . . . . 1 . 1 1 . 1 . . 1 . . . . . . . . . . 1 Total Hacks 92 | . 6 5 . 5 7 2 8 1 16 . . 2 . 7 . 1 . 5 . 18 . 2 7 Successful 57 | . 2 4 . 1 2 2 5 1 9 . . 2 . 3 . 1 . 5 . 18 . . 2 Failed 35 | . 4 1 . 4 5 . 3 . 7 . . . . 4 . . . . . . . 2 5 Catastrophic 7 | . . . . 1 1 . . . . . . . . 1 . . . . . . . 1 3 Database Lockouts . | . . . . . . . . . . . . . . . . . . . . . . . . Manual 15 | . 1 3 . . . . 1 . 5 . . . . . . . . . . . . . 5 Terminals 44 | . 3 3 . 2 7 . 7 1 7 . . . . 7 . . . 1 . . . . 6 Fabricators . | . . . . . . . . . . . . . . . . . . . . . . . . Repair Stations 7 | . . . . . . . . . 7 . . . . . . . . . . . . . . Recycling Units 6 | . 3 . . . . . . . 1 . . . . . . . . . . . . 2 . Scanalyzers 2 | . . 2 . . . . . . . . . . . . . . . . . . . . . Garrison Access 10 | . . . . 3 . 2 1 . 1 . . 2 . . . . . . . . . . 1 Terminal Hacks 37 | . . 1 . . 2 . 3 1 2 . . . . 3 . 1 . 5 . 18 . . 1 Record 10 | . . . . . . . . . . . . . . . . . . 4 . 6 . . . Part Schematic 4 | . . . . . . . . . . . . . . . . . . . . 4 . . . Robot Analysis 4 | . . . . . . . . . . . . . . . . . . . . 4 . . . Prototype ID Bank 4 | . . . . . . . . . . . . . . . . . . . . 4 . . . Open Door 2 | . . . . . . . . . . . . . . . . 1 . 1 . . . . . Branch Access Points 1 | . . . . . . . 1 . . . . . . . . . . . . . . . . Emergency Access Points 2 | . . . . . 1 . . 1 . . . . . . . . . . . . . . . Garrison Index 1 | . . . . . . . . . 1 . . . . . . . . . . . . . . Alert Level 1 | . . . . . . . 1 . . . . . . . . . . . . . . . . Unreport Threat 1 | . . . . . . . 1 . . . . . . . . . . . . . . . . Patrol Status 1 | . . . . . . . . . . . . . . 1 . . . . . . . . . Registered Components 1 | . . . . . . . . . . . . . . 1 . . . . . . . . . Registered Prototypes 1 | . . . . . . . . . . . . . . 1 . . . . . . . . . Zone Layout 2 | . . 1 . . . . . . 1 . . . . . . . . . . . . . . Patrol Navigation 1 | . . . . . 1 . . . . . . . . . . . . . . . . . . Protovariant Controls 1 | . . . . . . . . . . . . . . . . . . . . . . . 1 Fabricator Hacks . | . . . . . . . . . . . . . . . . . . . . . . . . Repair Station Hacks 3 | . . . . . . . . . 3 . . . . . . . . . . . . . . Scan Component 2 | . . . . . . . . . 2 . . . . . . . . . . . . . . Repair 1 | . . . . . . . . . 1 . . . . . . . . . . . . . . Recycling Unit Hacks 3 | . 2 . . . . . . . 1 . . . . . . . . . . . . . . Report Inventory 2 | . 1 . . . . . . . 1 . . . . . . . . . . . . . . Retrieve Components 1 | . 1 . . . . . . . . . . . . . . . . . . . . . . Scanalyzer 2 | . . 2 . . . . . . . . . . . . . . . . . . . . . Insert Component 1 | . . 1 . . . . . . . . . . . . . . . . . . . . . Analyze 1 | . . 1 . . . . . . . . . . . . . . . . . . . . . Garrison Access Hacks 7 | . . . . 1 . 2 1 . . . . 2 . . . . . . . . . . 1 Unlock Access 3 | . . . . 1 . . 1 . . . . 1 . . . . . . . . . . . Seal Access 1 | . . . . . . 1 . . . . . . . . . . . . . . . . . Coupler Status 3 | . . . . . . 1 . . . . . 1 . . . . . . . . . . 1 Unauthorized Hacks 5 | . . 1 . . . . 1 . 3 . . . . . . . . . . . . . . Terminals 4 | . . 1 . . . . 1 . 2 . . . . . . . . . . . . . . Track 1 | . . . . . . . 1 . . . . . . . . . . . . . . . . Botnet 2 | . . 1 . . . . . . 1 . . . . . . . . . . . . . . Operators 1 | . . . . . . . . . 1 . . . . . . . . . . . . . . Fabricators . | . . . . . . . . . . . . . . . . . . . . . . . . Repair Stations . | . . . . . . . . . . . . . . . . . . . . . . . . Recycling Units . | . . . . . . . . . . . . . . . . . . . . . . . . Scanalyzers . | . . . . . . . . . . . . . . . . . . . . . . . . Garrison Access 1 | . . . . . . . . . 1 . . . . . . . . . . . . . . Eject 1 | . . . . . . . . . 1 . . . . . . . . . . . . . . Data Cores Recovered . | . . . . . . . . . . . . . . . . . . . . . . . . Used . | . . . . . . . . . . . . . . . . . . . . . . . . Hacking Detections 21 | . 2 1 . 1 2 . 2 . 6 . . 1 . 2 . . . . . . . 1 3 Full Trace Events 8 | . 1 . . 1 1 . 1 . 2 . . . . 1 . . . . . . . . 1 Feedback Events 1 | . . . . . . . . . 1 . . . . . . . . . . . . . . Corruption 1 | . . . . . . . . . 1 . . . . . . . . . . . . . . Feedback Blocked . | . . . . . . . . . . . . . . . . . . . . . . . . Robot Schematics Acquired 2 | . . . . . . . . . . . . . . . . . . . . . . . 2 Robots Built . | . . . . . . . . . . . . . . . . . . . . . . . . Authchips . | . . . . . . . . . . . . . . . . . . . . . . . . Time . | . . . . . . . . . . . . . . . . . . . . . . . . Total Robot Build Rating . | . . . . . . . . . . . . . . . . . . . . . . . . Part Schematics Acquired 15 | . . 1 . . . . . . . . . . . . . . . . . 4 . . 10 Parts Built . | . . . . . . . . . . . . . . . . . . . . . . . . Authchips . | . . . . . . . . . . . . . . . . . . . . . . . . Time . | . . . . . . . . . . . . . . . . . . . . . . . . Total Part Build Rating . | . . . . . . . . . . . . . . . . . . . . . . . . Parts Repaired 1 | . . . . . . . . . 1 . . . . . . . . . . . . . . Time 22 | . . . . . . . . . 22 . . . . . . . . . . . . . . Parts Recycled . | . . . . . . . . . . . . . . . . . . . . . . . . Recycled Matter . | . . . . . . . . . . . . . . . . . . . . . . . . Retrieved Matter . | . . . . . . . . . . . . . . . . . . . . . . . . Retrieved Components 1 | . 1 . . . . . . . . . . . . . . . . . . . . . . Parts Scanalyzed 1 | . . 1 . . . . . . . . . . . . . . . . . . . . . Part Schematics Acquired 1 | . . 1 . . . . . . . . . . . . . . . . . . . . . Parts Damaged . | . . . . . . . . . . . . . . . . . . . . . . . . Bothacking | -11 -10 -9 -9 -8 -8 -8 -7 -7 -6 -6 -6 -5 -5 -5 -5 -5 -4 -4 -4 -4 -3 -3 -3 ------------ Run | Yrd Mat Mat Min Mat Gar Mat Fac Gar Fac Low Low Fac Gar Fac Upp Upp Fac Upp Upp Zhi Pro Res Tes Used RIF Installer 3 | . . . . . 1 . . 1 . . . . 1 . . . . . . . . . . Coupler Efficiency 1 | . . . . . . . . . . . . . 1 . . . . . . . . . . Structural Interface 1 | . . . . . . . . 1 . . . . . . . . . . . . . . . Robots Hacked 48 | . . . . . . 6 2 4 8 4 . . 3 3 7 4 . 1 . . 1 1 4 Non-combat 14 | . . . . . . 2 1 . 4 . . . . 2 1 . . . . . 1 1 2 Combat 34 | . . . . . . 4 1 4 4 4 . . 3 1 6 4 . 1 . . . . 2 Robot Hacks Applied 52 | . . . . . . 6 2 5 10 4 . . 3 3 7 4 . 1 . . 1 2 4 parse_system 2 | . . . . . . . . . . . . . . . 1 . . . . . . . 1 generate_anomaly 1 | . . . . . . . . . . . . . . . . . . . . . 1 . . generate_echo 2 | . . . . . . 1 . . 1 . . . . . . . . . . . . . . find_chute 2 | . . . . . . . 1 . 1 . . . . . . . . . . . . . . locate_stockpiles 1 | . . . . . . . . . 1 . . . . . . . . . . . . . . locate_traps 1 | . . . . . . . . . 1 . . . . . . . . . . . . . . map_route 3 | . . . . . . 1 . . 1 . . . . . . . . . . . . 1 . mark_security 1 | . . . . . . . . . 1 . . . . . . . . . . . . . . disable_scanner 1 | . . . . . . . . . . . . . . . . . . . . . . . 1 link_fov 2 | . . . . . . . . . . . . . . . . . . . . . . 1 1 reboot_propulsion 1 | . . . . . . . . . . . . . . . . . . 1 . . . . . disrupt_area 2 | . . . . . . . . . . . . . 1 . 1 . . . . . . . . spike_heat 1 | . . . . . . . . . 1 . . . . . . . . . . . . . . amplify_resonance 3 | . . . . . . . . . . . . . . . 3 . . . . . . . . reboot_system 8 | . . . . . . . 1 1 1 2 . . 1 . 1 1 . . . . . . . overwrite_iff 4 | . . . . . . 1 . 1 . 1 . . . 1 . . . . . . . . . streamctrl_high 1 | . . . . . . . . 1 . . . . . . . . . . . . . . . formatsys_high 16 | . . . . . . 3 . 2 2 1 . . 1 2 1 3 . . . . . . 1 Relay Couplers Released 29 | . . . . . 11 . . 9 4 . . . 5 . . . . . . . . . . Ejected 4 | . . . . . . . . . 4 . . . . . . . . . . . . . . Machine Destruction 25 | . . . . . 11 . . 9 . . . . 5 . . . . . . . . . . Attached 20 | . . . . . 3 2 1 5 1 1 . . 5 2 . . . . . . . . . Fabnet Peak Effective % . | . . . . . . . . . . . . . . . . . . . . . . . . Robots Rewired 17 | . . . . . 6 . . 4 . . . . 6 . . . . . . . . . 1 Allies Hacked . | . . . . . . . . . . . . . . . . . . . . . . . . Hacks Repelled . | . . . . . . . . . . . . . . . . . . . . . . . . Allies | -11 -10 -9 -9 -8 -8 -8 -7 -7 -6 -6 -6 -5 -5 -5 -5 -5 -4 -4 -4 -4 -3 -3 -3 -------- Run | Yrd Mat Mat Min Mat Gar Mat Fac Gar Fac Low Low Fac Gar Fac Upp Upp Fac Upp Upp Zhi Pro Res Tes Total Allies 44 | . . . 3 . 6 4 . 7 2 2 . . 7 3 1 3 . . 1 . 3 . 2 Largest Group 7 | . . . 3 . 6 2 1 6 1 1 1 . 7 3 3 5 1 1 1 . 1 . 2 Highest-Rated Group 220 | . . . 40 . 63 37 21 152 41 29 16 . 220 65 66 126 9 9 64 . 116 . 152 Highest-Rated Ally 152 | . . . 16 . 16 21 21 40 41 29 16 . 46 29 30 30 9 9 64 . 116 . 152 Total Orders . | . . . . . . . . . . . . . . . . . . . . . . . . Ally Attacks 213 | . . . 19 . 27 19 . 29 11 10 1 . 28 3 . 8 . . 3 . 6 . 49 Total Damage 4281 | . . . 219 . 321 141 . 675 408 408 . . 479 55 . 390 . . 144 . 82 . 959 Kills 36 | . . . 4 . 5 2 . 5 2 2 . . 5 . . 2 . . 1 . . . 8 Allies Corrupted . | . . . . . . . . . . . . . . . . . . . . . . . . Allies Melted 2 | . . . . . . . . 1 . . . . . . . 1 . . . . . . . Intel | -11 -10 -9 -9 -8 -8 -8 -7 -7 -6 -6 -6 -5 -5 -5 -5 -5 -4 -4 -4 -4 -3 -3 -3 ------- Run | Yrd Mat Mat Min Mat Gar Mat Fac Gar Fac Low Low Fac Gar Fac Upp Upp Fac Upp Upp Zhi Pro Res Tes Robot Analysis Total 4 | . . . . . . . . . . . . . . . . . . . . 4 . . . Derelict Logs Recovered 9 | . . . 1 . . . . . . 2 . . . . 2 1 . 2 1 . . . . Drone Launches . | . . . . . . . . . . . . . . . . . . . . . . . . Drone Recoveries . | . . . . . . . . . . . . . . . . . . . . . . . . Decoded 0b10 Intel 11 | . . . . . . . . . . . . . . . . . . . . . . 1 10 Garrisons 1 | . . . . . . . . . . . . . . . . . . . . . . . 1 Patrols 5 | . . . . . . . . . . . . . . . . . . . . . . . 5 Investigations 2 | . . . . . . . . . . . . . . . . . . . . . . . 2 Reinforcements 2 | . . . . . . . . . . . . . . . . . . . . . . . 2 Guards 1 | . . . . . . . . . . . . . . . . . . . . . . 1 . Exploration | -11 -10 -9 -9 -8 -8 -8 -7 -7 -6 -6 -6 -5 -5 -5 -5 -5 -4 -4 -4 -4 -3 -3 -3 ------------- Run | Yrd Mat Mat Min Mat Gar Mat Fac Gar Fac Low Low Fac Gar Fac Upp Upp Fac Upp Upp Zhi Pro Res Tes Turns Passed 5747 | . 231 291 280 119 881 76 114 214 452 250 8 6 281 119 120 320 33 533 136 72 520 232 459 Spaces Moved 9764 | 1 158 157 325 99 928 139 317 392 1095 616 21 12 388 323 241 815 69 1280 399 144 987 362 496 Core 876 | . . 33 253 . 10 . . . . . . . . . . . . . . . 364 104 112 Treads . | . . . . . . . . . . . . . . . . . . . . . . . . Legs 350 | 1 158 6 . 37 139 . . . . . . . . . . . . . . 9 . . . Wheels 134 | . . . 72 62 . . . . . . . . . . . . . . . . . . . Hover 437 | . . 65 . . 96 . . . . . . . . . . . . . . . . 1 275 Flight 7967 | . . 53 . . 683 139 317 392 1095 616 21 12 388 323 241 815 69 1280 399 135 623 257 109 Fastest Speed 27 | 120 120 50 50 100 34 30 28 28 28 28 29 29 27 27 27 27 27 27 30 32 32 40 40 Average Speed 39 | 120 120 110 65 107 57 36 28 29 28 28 29 29 30 28 27 27 27 29 30 38 39 46 55 Slowest Speed 250 | 120 120 250 200 120 200 37 28 32 32 29 29 29 108 104 27 27 27 30 32 182 100 100 250 Overloaded Moves 9 | . . . . . . . . . . . . . . . . . . . . . . . 9 Propulsion Burnouts . | . . . . . . . . . . . . . . . . . . . . . . . . Robots Hopped 26 | . . . . . . . . 1 11 . . . 1 5 1 . . 3 . . 2 1 1 Cave-ins Triggered . | . . . . . . . . . . . . . . . . . . . . . . . . Teleports 1 | . . . . . . . . . . . . . . . . . . . . . 1 . . Exploration Rate (%) 40 | 2 28 24 72 11 91 20 8 41 36 83 5 1 48 12 37 88 2 92 49 60 91 9 62 Regions Visited 23 Branch Regions 10 Pre-discovered Areas 4 | . . . 1 . . . . . . . . . . . . . . . . 3 . . . Known Exits Taken 19 | . 1 1 1 1 . 1 1 . 1 1 1 1 . 1 1 1 1 1 1 1 1 1 . Unknown Exits Taken 1 | 1 . . . . . . . . . . . . . . . . . . . . . . . Scrap Searched 23 | . . . 4 . . . . . . 4 1 . . . 2 3 . 4 2 . 3 . . Spaces Dug 21 | . . . 15 . . . . . . . . . . . . . . 5 1 . . . . Terrain Destroyed 547 | . . . 82 25 122 26 6 22 . . . . . . 1 4 . 5 1 . . . 253 Melee 6 | . . . . . . . . . . . . . . . . . . 5 1 . . . . Projectile 1 | . . . . . . . . . . . . . . . 1 . . . . . . . . AOE 539 | . . . 82 25 122 26 6 22 . . . . . . . 4 . . . . . . 252 Terrain Rammed . | . . . . . . . . . . . . . . . . . . . . . . . . Walls Destroyed . | . . . . . . . . . . . . . . . . . . . . . . . . Machines Disabled . | . . . . . . . . . . . . . . . . . . . . . . . . Actions | -11 -10 -9 -9 -8 -8 -8 -7 -7 -6 -6 -6 -5 -5 -5 -5 -5 -4 -4 -4 -4 -3 -3 -3 --------- Run | Yrd Mat Mat Min Mat Gar Mat Fac Gar Fac Low Low Fac Gar Fac Upp Upp Fac Upp Upp Zhi Pro Res Tes Total 11061 | . 181 219 378 107 1133 161 337 455 1182 665 22 14 482 340 282 898 83 1409 413 159 1120 419 602 Wait 433 | . . 1 28 . 1 1 . 5 31 19 . . 10 8 19 64 14 99 2 . 87 35 9 Move 9695 | . 157 156 324 99 927 138 316 389 1074 615 20 12 385 312 238 814 68 1274 398 143 983 359 494 Hop 22 | . . . . . . . . 1 9 . . . 1 5 1 . . 2 . . 1 1 1 Pick Up 35 | . 2 2 1 . 9 . . 2 6 2 . . . . . . . 3 2 1 2 1 2 Fast Attach 115 | . 2 7 6 5 16 2 3 3 13 2 1 1 10 . 2 . . 6 1 8 3 9 15 Attach 50 | . . 5 3 . 9 2 3 . 1 1 . 1 2 3 1 . . 3 1 . 4 3 8 Detach 55 | . 1 7 2 1 8 2 2 . 1 4 . . 3 3 3 . 1 4 1 . 2 3 7 Swap 43 | . 1 2 1 . 8 1 3 5 4 4 . . 3 1 . 1 . 1 . . 5 . 3 Drop 68 | . 4 4 2 . 13 1 3 2 4 2 1 . 4 . 1 . . 4 5 7 2 2 7 Fire 290 | . 10 34 10 2 30 2 4 29 29 16 . . 45 6 16 18 . 8 . . 1 2 28 Melee 162 | . . . 1 . 58 9 3 15 10 . . . . . . . . 5 3 . 30 4 24 Ram 4 | . . 1 . . . . . . . . . . . . . . . . . . . . 3 Kick 4 | . 4 . . . . . . . . . . . . . . . . . . . . . . Crush . | . . . . . . . . . . . . . . . . . . . . . . . . Escape Stasis 54 | . . . . . 36 . . . . . . . 18 . . . . . . . . . . Rewire 28 | . . . . . 18 3 . 2 . . . . 1 2 1 1 . . . . . . . Trap 3 | . . . . . . . . 2 . . . . . . . . . . . . . . 1 Miscellaneous . | . . . . . . . . . . . . . . . . . . . . . . . . Route ------- -11/Scrapyard -10/Materials -9/Materials -9/Mines -8/Materials -8/Garrison (discovered 4 exits: *Mat x4) -8/Materials -7/Factory (discovered 4 exits: Sto / Low x2 / Gar) -7/Garrison -6/Factory -6/Lower Caves -6/Lower Caves -5/Factory -5/Garrison -5/Factory -5/Upper Caves -5/Upper Caves (discovered 2 exits: *Fac / *War) -4/Factory -4/Upper Caves -4/Upper Caves (discovered 2 exits: *Res / *Zhi) -4/Zhirov -3/Proximity Caves -3/Research -3/Testing History --------- Turn | Location | Event 1 | -11/Scrapyard | Discovered new exit (range 0) 1 | -11/Scrapyard | Entered Materials 214 | -10/Materials | Discovered new exit (range 16) 231 | -10/Materials | Identified exit to Materials 232 | -10/Materials | Entered another Materials area 232 | -9/Materials | Evolved 2 slots: Utility x2 308 | -9/Materials | Build established: Mutant 369 | -9/Materials | Lost 5 parts (1p2n1u1w) 448 | -9/Materials | Discovered new exit (range 15) 475 | -9/Materials | Core integrity fell below 50% 519 | -9/Materials | Core integrity fell below 20% 522 | -9/Materials | Identified exit to Mines 523 | -9/Materials | Entered Mines 526 | -9/Mines | Assisted by bots powering up and referring to "LRC-V3" 547 | -9/Mines | Lost 5 parts (1n1u3w) 684 | -9/Mines | Learned Materials terminal intel 731 | -9/Mines | Assembled infested the area 784 | -9/Mines | Discovered new exit (range 15) 785 | -9/Mines | Lost 3 allies 787 | -9/Mines | Learned location of Storage (-7) 794 | -9/Mines | Destroyed 14 combat bots 799 | -9/Mines | Identified exit to Materials 803 | -9/Mines | Entered Materials 803 | -8/Materials | Evolved 2 slots: Propulsion x1, Utility x1 804 | -8/Materials | Loaded intel: 12 terminal locations 922 | -8/Materials | Identified exit to Garrison 922 | -8/Materials | Entered Garrison 995 | -8/Garrison | Triggered checkpoint 1010 | -8/Garrison | Core integrity fell below 50% 1038 | -8/Garrison | Lost 8 parts (1p3n1u3w) 1040 | -8/Garrison | Destroyed 8 combat bots 1054 | -8/Garrison | Triggered checkpoint 1156 | -8/Garrison | Build established: Scavenger-Mutant 1299 | -8/Garrison | Warlord forces raided the area 1382 | -8/Garrison | Triggered checkpoint 1393 | -8/Garrison | Lost 5 allies 1408 | -8/Garrison | Triggered checkpoint 1414 | -8/Garrison | Triggered checkpoint 1420 | -8/Garrison | Triggered checkpoint 1423 | -8/Garrison | Discovered new exit (range 10) 1426 | -8/Garrison | Identified exit to Materials 1427 | -8/Garrison | Triggered checkpoint 1466 | -8/Garrison | Garrison Relay disabled 1520 | -8/Garrison | Discovered exit to Materials (range 12) 1547 | -8/Garrison | Installed Relay Interface Framework 1551 | -8/Garrison | Garrison Relay disabled 1562 | -8/Garrison | Triggered checkpoint 1602 | -8/Garrison | Triggered checkpoint 1621 | -8/Garrison | Garrison Relay disabled 1677 | -8/Garrison | Discovered exit to Materials (range 9) 1792 | -8/Garrison | Triggered checkpoint 1802 | -8/Garrison | Triggered checkpoint 1802 | -8/Garrison | Discovered exit to Materials (range 5) 1803 | -8/Garrison | Entered Materials 1852 | -8/Materials | Discovered new exit (range 14) 1861 | -8/Materials | Identified exit to Factory 1879 | -8/Materials | Entered Factory 1879 | -7/Factory | Accompanied by 1 ally 1879 | -7/Factory | Evolved 2 slots: Propulsion x1, Utility x1 1913 | -7/Factory | Identified exit to Storage 1913 | -7/Factory | Identified exit to Lower Caves 1992 | -7/Factory | Identified exit to Garrison 1993 | -7/Factory | Entered Garrison 1993 | -7/Garrison | Accompanied by 1 ally 2003 | -7/Garrison | Garrison Relay disabled 2012 | -7/Garrison | Triggered checkpoint 2086 | -7/Garrison | Expanded RIF knowledge: Structural Interface 2093 | -7/Garrison | System corruption reached 10% 2124 | -7/Garrison | Triggered checkpoint 2144 | -7/Garrison | Discovered new exit (range 13) 2158 | -7/Garrison | Triggered checkpoint 2166 | -7/Garrison | Triggered checkpoint 2181 | -7/Garrison | Garrison Relay disabled 2184 | -7/Garrison | Triggered checkpoint 2207 | -7/Garrison | Identified exit to Factory 2207 | -7/Garrison | Entered Factory 2207 | -6/Factory | Evolved 2 slots: Utility x2 2318 | -6/Factory | Build established: Bothacker-Sprinter 2557 | -6/Factory | Search patrols dispatched 2620 | -6/Factory | Lost 3 parts (1p1n1u) 2626 | -6/Factory | Repaired Xenon Bombardment Thruster 2638 | -6/Factory | Discovered new exit (range 5) 2647 | -6/Factory | Identified exit to Lower Caves 2659 | -6/Factory | Entered Lower Caves 2801 | -6/Lower Caves | Learned Factory security intel 2805 | -6/Lower Caves | Encountered a Warlord checkpoint 2807 | -6/Lower Caves | Identified exit to Lower Caves 2868 | -6/Lower Caves | Attracted the attention of an 0b10 checkpoint 2909 | -6/Lower Caves | Entered another Lower Caves area 2909 | -6/Lower Caves | Accompanied by 1 ally 2915 | -6/Lower Caves | Discovered new exit (range 9) 2917 | -6/Lower Caves | Identified exit to Factory 2917 | -6/Lower Caves | Entered Factory 2917 | -5/Factory | Evolved 2 slots: Utility x1, Weapon x1 2923 | -5/Factory | Identified exit to Garrison 2923 | -5/Factory | Entered Garrison 2926 | -5/Garrison | Spotted B-90 Cyclops 2930 | -5/Garrison | Spotted B-90 Cyclops 3005 | -5/Garrison | Expanded RIF knowledge: Coupler Efficiency 3064 | -5/Garrison | Garrison Relay disabled 3108 | -5/Garrison | Triggered checkpoint 3124 | -5/Garrison | Triggered checkpoint 3196 | -5/Garrison | Discovered new exit (range 14) 3200 | -5/Garrison | Identified exit to Factory 3204 | -5/Garrison | Entered Factory 3233 | -5/Factory | Lost 3 parts (1n1u1w) 3315 | -5/Factory | Discovered new exit (range 5) 3316 | -5/Factory | Identified exit to Upper Caves 3323 | -5/Factory | Entered Upper Caves 3323 | -5/Upper Caves | Accompanied by 2 allies 3390 | -5/Upper Caves | Learned Factory trap positions 3407 | -5/Upper Caves | Identified exit to Upper Caves 3443 | -5/Upper Caves | Entered another Upper Caves area 3443 | -5/Upper Caves | Accompanied by 3 allies 3452 | -5/Upper Caves | Encountered a Warlord checkpoint 3491 | -5/Upper Caves | Learned Factory trap positions 3548 | -5/Upper Caves | Discovered new exit (range 10) 3550 | -5/Upper Caves | Identified exit to Warlord 3731 | -5/Upper Caves | Discovered new exit (range 13) 3734 | -5/Upper Caves | Identified exit to Factory 3743 | -5/Upper Caves | Build established: Bothacker-Scout 3763 | -5/Upper Caves | Entered Factory 3763 | -4/Factory | Accompanied by 1 ally 3763 | -4/Factory | Evolved 2 slots: Propulsion x1, Utility x1 3764 | -4/Factory | Loaded intel: 101 trap records 3775 | -4/Factory | Discovered new exit (range 14) 3779 | -4/Factory | Identified exit to Upper Caves 3796 | -4/Factory | Entered Upper Caves 3796 | -4/Upper Caves | Accompanied by 1 ally 3797 | -4/Upper Caves | Encountered a Warlord checkpoint 3889 | -4/Upper Caves | Lost 4 parts (1n2u1w) 4005 | -4/Upper Caves | Learned Research trap positions 4005 | -4/Upper Caves | Learned Factory emergency access door positions 4005 | -4/Upper Caves | Learned Armory emergency access door positions 4018 | -4/Upper Caves | Learned Research emergency access door positions 4018 | -4/Upper Caves | Learned Research garrison access intel 4079 | -4/Upper Caves | Discovered new exit (range 10) 4240 | -4/Upper Caves | Found Alien Artifact 4328 | -4/Upper Caves | Identified exit to Upper Caves 4329 | -4/Upper Caves | Entered another Upper Caves area 4353 | -4/Upper Caves | Ambushed by wild Derelicts 4371 | -4/Upper Caves | Discovered new exit (range 10) 4374 | -4/Upper Caves | Build established: Derelict-Sprinter 4374 | -4/Upper Caves | Identified exit to Research 4413 | -4/Upper Caves | Learned 4 Research zone layouts 4436 | -4/Upper Caves | Attracted the attention of an 0b10 outpost 4463 | -4/Upper Caves | Discovered new exit (range 7) 4464 | -4/Upper Caves | Identified exit to Zhirov 4465 | -4/Upper Caves | Entered Zhirov 4465 | -4/Zhirov | Discovered new exit (range 3) 4471 | -4/Zhirov | Met Zhirov 4478 | -4/Zhirov | Learned location of Testing (-3) 4478 | -4/Zhirov | Learned location of Command (-1) 4478 | -4/Zhirov | Learned location of Quarantine (-2) 4480 | -4/Zhirov | Zhirov requested help retrieving the SGEMP Prototype 4487 | -4/Zhirov | Found Alien Artifact 4487 | -4/Zhirov | Identified Integrated Reactor 4487 | -4/Zhirov | Installed Integrated Reactor, increased core energy generation (+10) 4492 | -4/Zhirov | Found Alien Artifact 4537 | -4/Zhirov | Identified exit to Proximity Caves 4537 | -4/Zhirov | Entered Proximity Caves 4626 | -3/Proximity Caves | Attracted the attention of an 0b10 checkpoint 4767 | -3/Proximity Caves | Build established: Sprinter 4789 | -3/Proximity Caves | Spotter reported a threat 4876 | -3/Proximity Caves | Identified Transdimensional Reconstructor 4876 | -3/Proximity Caves | Warped through subspace 4892 | -3/Proximity Caves | Spotter reported a threat 5039 | -3/Proximity Caves | Spotted B-86 Titan 5047 | -3/Proximity Caves | Spotter reported a threat 5049 | -3/Proximity Caves | Discovered exit to Research (range 15) 5057 | -3/Proximity Caves | Entered Research 5057 | -3/Research | Evolved 2 slots: Power x1, Utility x1 5059 | -3/Research | Loaded intel: 97 trap records 5061 | -3/Research | Loaded intel: 4 garrison access locations 5087 | -3/Research | Discovered new exit (range 10) 5096 | -3/Research | Identified exit to Testing 5200 | -3/Research | Build established: Mutant 5230 | -3/Research | Spotted B-86 Titan 5238 | -3/Research | Found Prototype Processor 5238 | -3/Research | Identified Spectral Analyzer 5289 | -3/Research | Entered Testing 5311 | -3/Testing | Spotted PH-0YV3KK9VZO 5317 | -3/Testing | Rewired PH-0YV3KK9VZO 5346 | -3/Testing | Found Prototype Launcher 5346 | -3/Testing | Identified Tactical Quantum Warhead 5385 | -3/Testing | Found Prototype Device 5385 | -3/Testing | Identified Exp. Phase Shifter 5421 | -3/Testing | Identified Core Expander 5437 | -3/Testing | Installed Core Expander, added new Weapon slot 5615 | -3/Testing | Destroyed 8 combat bots 5619 | -3/Testing | Spotted Alpha 7 5644 | -3/Testing | Lost 13 parts (1p4n5u3w) 5654 | -3/Testing | System corruption reached 10% 5657 | -3/Testing | Core integrity fell below 50% 5714 | -3/Testing | Core integrity fell below 20% 5748 | -3/Testing | Destroyed by G-67 Veteran with Field Laser Last Messages --------------- 05719_ Destabilizing: System corrupted (+1). 05720_ U-05 Engineer builds a Wall. 05720_ 0b10 Decoder Chip [Skirmisher] destroyed. 05720_ Slammed into G-67 Veteran. 05720_ Destabilizing: Core damaged (-52). 05723_ K-01 Serf collects debris. 05723_ U-05 Engineer lays Concrete. 05725_ U-05 Engineer builds a Wall. 05726_ U-05 Engineer lays Concrete. 05727_ K-01 Serf collects debris. 05727_ U-05 Engineer builds a Wall. 05728_ System corrupted: Component data lost. 05728_ Detecting nearby Garrison Access. 05732_ Slammed into R-10 Processor. 05741_ Connecting with Garrison Access... >>Couplers Installed: Relay Coupler [Sentry] (22) Relay Coupler [NC] (29) Relay Coupler [NC] (26) Map ----- +----------------------------------------------------+ | ##### """" [%[ [%! % [ # ##??### | | ????# """" " = "#########+#/# # ## #??# | | ????# """" #= #?? # #### | | ????# """" #######??"""" | | ????########??????? """ % # ###### | | ??????????????????? """ # #???? | | ??????????????????? "" ### ???? | | ??????????????????# """ # ##??# | | ??????????????????# #???# | | ??????????????????##### ##/# # #???# | | ??????????????????????##???# # # # #???# | | ???????????????????????????# ##############?###### | | ???????????????????????????# #[ !!! #??????? | | ???????????????????????????#g# !!! #??????? | | ????????????????????????#### # """ !! #??????? | | ????????????????????????# # """ #??????? | | ????????????????????????# # """ #??????? | | ????????????????????????# + #??????? | | ????????????????????????# # """ """ [#??????? | | ????????????????????????# # """ """ #??????? | | ????????????????????????# # """ """ #??????? | | ????????????????????????# # #??????? | | ????????????????????????# # """ """ #??????? | | ????????????????????????# # """G""" #??????? | | ????????????????????????# ##############??????? | | ????????????????????????#@ #???????????????????? | | ????????????????????????# #???????????????????? | | ????????????????????????# #???????????????????? | | ????????????????????????# #???????????????????? | | ????????????????????????# R#???????????????????? | | ????????????????????????# #???????????????????? | | ????????????????????????# #???????????????????? | | ????????????????????????+ +???????????????????? | | ????????????????????????#c #???????????????????? | | ????????????????????????? #???????????????????? | | ????????????????????????? #???????????????????? | | ????????????????????????? ???????????????????? | | ????????????????????????? ???????????????????? | | ????????????????????????? ???????????????????? | | ????????????????????????? ???????????????????? | | ?????????????????????????###?????????????????????? | | ?????????????????????????????????????????????????? | | ?????????????????????????????????????????????????? | | ?????????????????????????????????????????????????? | | ?????????????????????????????????????????????????? | | ?????????????????????????????????????????????????? | | ?????????????????????????????????????????????????? | | ?????????????????????????????????????????????????? | | ?????????????????????????????????????????????????? | | ?????????????????????????????????????????????????? | +----------------------------------------------------+ Best States ------------- Heat Dissipation 46 Coolant Potential 80 Energy Generation 35 Energy Capacity 340 Matter Stores 300 Matter Capacity 300 Sight Range 16 Robot Scan Range 16 Terrain Scan Range 16 Terrain Scan Density 210 Base Temperature (-) 150 Armor Coverage 225 Resistance: EM 25 Core Shielding 40 Propulsion Shielding 66 Utility Shielding 66 Phase Shifting 20 Evasion (%) 73 Targeting Accuracy 5 Melee Accuracy 5 Launcher Accuracy 20 Target Analysis 5 Offensive Hacking 20 Defensive Hacking 14 Relay Coupler Types 5 Relay Coupler Value 212 Item Schematics ----------------- Imp. Hover Unit | -9/Materials | Scanalyzed Assault Drone Bay | -4/Zhirov | Free Exp. Heat Sink | -4/Zhirov | Free Exp. Optical Array | -4/Zhirov | Free Imp. Arc Thrower | -4/Zhirov | Free Exp. Thermal Defense Suite | -3/Testing | Archive Exp. Field Recycling Unit | -3/Testing | Archive Exp. Coolant Injector | -3/Testing | Archive Com. Mass Driver | -3/Testing | Archive Coolant Network | -3/Testing | Archive Diametric Drive | -3/Testing | Archive Lrn. Phase Cannon | -3/Testing | Archive Mni. Fusion Reactor | -3/Testing | Archive Stealth Drone Bay | -3/Testing | Archive Exp. Signal Interpreter | -3/Testing | Archive Robot Schematics ------------------ A-27 Freighter | -3/Testing | Archive E-15 Imp | -3/Testing | Archive Fabricated ------------ Nothing Alien Tech Used ----------------- Integrated Reactor Transdimensional Reconstructor Core Expander Achievements -------------- None Challenges ------------ None Game ------ Seed AbsorptionKineticProcessor Manual? 0 Play Time 01:13:16 Cumulative 573.6 hours Start 2024.01.05 @ 23:49:00 End 2024.01.06 @ 01:00:11 Sessions 1 Manual Loads 0 Difficulty Rogue Special Mode None Game No. 470 Rogue 197 Adventurer 123 Explorer 150 Win Type - Total 25 Types 19/0/4/1/0/0/0/1/0 Lore% 77 Gallery% 90 Achievement% 75 Wizard Run 0 Options --------- ASCII 0 Keyboard 1 Movement Numpad Keybinds 0 Fullscreen 2 Font 18/X11Bold Map View 76x50 Zoom Use 0% Tactical HUD 1 Map Filters NONE Filters NONE Steam 1 RUN: bc1fa84d-6738-4520-a787-2359724ea099